bitfinex/quotes_SOLUSD_20241208
["timestamp","ask_amount","ask_price","bid_price","bid_amount"]
[1733671269120,0.25098,235.55,235.41,20.63696441]
[1733671269306,0.12549,235.55,235.41,20.0]
[1733671270435,3.1834,235.6,235.45,20.0]
[1733671270597,0.12549,235.56,235.45,20.0]
[1733671271230,3.1834,235.6,235.45,20.0]
[1733671271516,3.1828,235.64,235.49,20.0]
[1733671272091,6.3648,235.67,235.45,20.0]
[1733671272293,3.1833,235.61,235.45,20.0]
[1733671273397,3.1836,235.58,235.42,23.902374]
[1733671274503,3.1836,235.58,235.42,0.12549]
[1733671274700,3.1836,235.58,235.44,20.0]
[1733671276023,0.25098,235.56,235.44,20.0]
[1733671276336,0.25098,235.54,235.38,20.0]
[1733671276721,0.25098,235.54,235.36,0.63694177]
[1733671277528,0.25098,235.54,235.37,23.902374]
[1733671277824,3.1843,235.53,235.37,23.902374]
[1733671278235,3.1843,235.53,235.4,20.0]
[1733671280634,0.12549,235.52,235.4,20.0]
[1733671280840,0.12549,235.52,235.32,6.74545451]
[1733671280841,0.12549,235.48,235.32,6.74545451]
[1733671281035,0.12549,235.48,235.31,0.63708125]
[1733671281344,24.153354,235.48,235.28,0.63722098]
[1733671281504,24.153354,235.48,235.24,2.16002098]
[1733671282038,0.12549,235.45,235.24,2.16002098]
[1733671282507,3.1855,235.45,235.27,0.25098]
[1733671282834,3.1855,235.45,235.29,0.12549]
[1733671283208,3.1855,235.45,235.29,44.027864]
[1733671285320,3.1855,235.45,235.3,0.63725341]
[1733671286400,0.12549,235.44,235.29,43.902374]
[1733671286603,24.027864,235.42,235.25,20.0]
[1733671286915,0.12549,235.4,235.25,20.0]
[1733671287301,0.25098,235.4,235.22,11.26528466]
[1733671287513,24.027864,235.4,235.22,0.63728466]
[1733671287724,24.027864,235.4,235.19,2.16027692]
[1733671287917,0.12549,235.38,235.2,0.12549]
[1733671288114,0.12549,235.38,235.21,0.63749162]
[1733671288520,0.12549,235.36,235.19,1.5228]
[1733671288837,0.12549,235.34,235.18,0.63749908]
[1733671289333,24.027864,235.34,235.17,0.4922169]
[1733671289707,24.027864,235.34,235.18,0.63757512]
[1733671290047,24.027864,235.34,235.17,0.4922169]
[1733671290640,0.12549,235.32,235.17,0.4922169]
[1733671291137,6.5257,235.35,235.19,0.25098]
[1733671291442,6.5257,235.35,235.21,0.25098]
[1733671291658,6.5257,235.35,235.23,24.027864]
[1733671291855,6.5257,235.35,235.26,20.0]
[1733671292144,6.5257,235.35,235.27,0.6373106]
[1733671292509,1.6627,235.39,235.28,24.027864]
[1733671292714,6.3099,235.4,235.31,20.0]
[1733671293948,6.3099,235.4,235.3,20.0]
[1733671294515,0.12549,235.39,235.26,20.0]
[1733671294815,0.12549,235.39,235.22,20.63735773]
[1733671295023,3.31169,235.39,235.22,0.63735773]
[1733671295225,3.31169,235.39,235.2,0.12549]
[1733671296417,3.31169,235.39,235.23,20.0]
[1733671297017,3.31169,235.39,235.24,0.63746401]
[1733671299324,3.31169,235.39,235.24,23.902374]
[1733671299580,0.12549,235.38,235.24,23.776884]
[1733671299727,0.12549,235.38,235.19,10.6294]
[1733671299923,0.12549,235.38,235.2,0.63751429]
[1733671300346,3.31169,235.39,235.21,0.12549]
[1733671300549,6.3099,235.4,235.23,0.25098]
[1733671300843,6.3099,235.4,235.28,20.0]
[1733671302721,6.3099,235.4,235.32,20.0]
[1733671303354,6.3099,235.4,235.29,20.0]
[1733671305755,6.3099,235.4,235.33,20.0]
[1733671306642,6.3099,235.4,235.34,0.63714438]
[1733671306858,6.4326,235.47,235.38,20.0]
[1733671307108,6.4326,235.47,235.39,0.63704358]
[1733671307567,1.5255,235.51,235.43,20.0]
[1733671308071,1.5255,235.51,235.42,43.902374]
[1733671308663,6.4326,235.52,235.42,43.902374]
[1733671308962,6.4326,235.52,235.38,20.0]
[1733671309256,6.4326,235.52,235.42,20.0]
[1733671309635,0.12549,235.51,235.35,4.87047267]
[1733671309833,3.43548,235.51,235.31,7.59516562]
[1733671310049,3.43548,235.51,235.31,1.5221]
[1733671310897,3.43548,235.51,235.24,71.92330559]
[1733671310898,0.25098,235.46,235.26,10.6263]
[1733671311077,0.25098,235.46,235.28,0.12549]
[1733671311462,0.25098,235.46,235.27,0.63725112]
[1733671312176,0.12549,235.46,235.29,20.0]
[1733671312368,0.12549,235.46,235.29,20.63720553]
[1733671312566,7.9581,235.5,235.34,20.0]
[1733671312961,0.12549,235.49,235.34,20.0]
[1733671316794,0.12549,235.46,235.27,10.6259]
[1733671317765,0.12549,235.44,235.3,20.0]
[1733671318071,0.12549,235.44,235.31,20.0]
[1733671321088,0.12549,235.46,235.31,20.0]
[1733671321413,0.12549,235.46,235.31,20.63728453]
[1733671321975,0.12549,235.47,235.35,20.0]
[1733671322805,0.12549,235.45,235.29,20.12549]
[1733671323100,3.1852,235.46,235.23,0.63721733]
[1733671323101,0.25098,235.41,235.23,0.63721733]
[1733671323315,0.12549,235.41,235.24,0.12549]
[1733671323471,0.12549,235.41,235.25,0.63736236]
[1733671324488,0.12549,235.41,235.25,20.63736236]
[1733671325407,6.6358,235.38,235.23,0.12549]
[1733671325710,6.6358,235.38,235.23,0.76294342]
[1733671325914,6.6358,235.38,235.26,0.12549]
[1733671326079,6.6358,235.38,235.27,23.902374]
[1733671326396,6.6358,235.38,235.29,23.902374]
[1733671326593,6.6358,235.38,235.32,20.0]
[1733671327181,8.2456,235.44,235.36,20.0]
[1733671327706,6.6358,235.44,235.4,20.0]
[1733671329008,6.6358,235.44,235.34,20.0]
[1733671329803,6.6358,235.44,235.27,26.52453492]
[1733671329983,0.12549,235.43,235.26,10.6261]
[1733671330311,0.12549,235.43,235.25,26.52453492]
[1733671330312,0.25098,235.43,235.25,26.52453492]
[1733671330479,0.12549,235.41,235.24,26.52453492]
[1733671330680,0.12549,235.41,235.23,2.23110997]
[1733671331116,0.12549,235.41,235.24,0.12549]
[1733671331406,1.6098,235.42,235.26,0.25098]
[1733671331707,1.6098,235.42,235.28,20.12549]
[1733671331912,1.6098,235.42,235.28,44.027864]
[1733671332312,1.6098,235.42,235.29,20.0]
[1733671333095,1.6098,235.42,235.31,20.0]
[1733671333279,0.12549,235.41,235.27,0.63727399]
[1733671333481,0.12549,235.41,235.25,23.902374]
[1733671334487,1.6098,235.42,235.3,20.0]
[1733671336479,0.12549,235.41,235.27,23.902374]
[1733671336806,0.12549,235.41,235.25,23.902374]
[1733671337317,0.12549,235.41,235.25,0.12549]
[1733671338104,0.12549,235.41,235.27,20.0]
[1733671338691,1.6098,235.42,235.28,0.63733726]
[1733671339507,1.6098,235.42,235.27,20.0]
[1733671340400,1.6098,235.42,235.28,24.027864]
[1733671340599,1.6098,235.42,235.31,20.0]
[1733671341522,1.6098,235.42,235.29,20.0]
[1733671341728,1.6098,235.42,235.27,20.0]
[1733671342021,3.31139,235.41,235.26,20.0]
[1733671342209,3.31139,235.41,235.27,20.0]
[1733671342414,0.25098,235.4,235.27,20.0]
[1733671343420,0.25098,235.4,235.28,20.0]
[1733671343723,0.12549,235.35,235.18,26.52453492]
[1733671343922,0.12549,235.34,235.17,27.65429338]
[1733671344232,0.12549,235.32,235.17,1.12975846]
[1733671344391,0.12549,235.3,235.17,0.4922169]
[1733671344592,0.25098,235.31,235.17,0.4922169]
[1733671344901,0.12549,235.31,235.17,0.4922169]
[1733671346992,0.12549,235.31,235.18,20.0]
[1733671347194,0.12549,235.31,235.17,0.4922169]
[1733671347393,0.12549,235.28,235.17,0.4922169]
[1733671347930,6.59169,235.25,235.17,0.4922169]
[1733671348137,6.59169,235.25,235.05,17.1022]
[1733671348138,0.25098,235.17,235.05,6.4662]
[1733671348334,6.4662,235.2,235.02,26.52453492]
[1733671348335,0.12549,235.16,235.02,0.63801967]
[1733671348705,0.12549,235.18,235.02,0.63801967]
[1733671349234,0.12549,235.18,234.99,0.63798276]
[1733671349439,0.12549,235.18,234.99,20.63798276]
[1733671349946,0.25098,235.16,235.03,20.0]
[1733671351824,0.12549,235.15,235.0,0.63801795]
[1733671352027,0.12549,235.12,234.97,0.63807173]
[1733671352520,0.25098,235.12,234.97,0.63807173]
[1733671353419,0.12549,235.12,234.99,20.0]
[1733671353651,0.12549,235.12,235.0,0.63805095]
[1733671354753,0.25098,235.12,234.99,20.0]
[1733671356231,0.25098,235.12,234.97,0.63810301]
[1733671356417,0.25098,235.12,234.95,23.776884]
[1733671356622,0.25098,235.12,234.97,23.776884]
[1733671357339,0.25098,235.12,234.98,0.63815656]
[1733671357545,0.25098,235.12,235.0,20.0]
[1733671359428,0.12549,235.12,235.0,20.0]
[1733671365744,0.12549,235.07,234.93,1.1303114]
[1733671365944,0.25098,235.07,234.93,0.4922169]
[1733671367047,0.25098,235.07,234.93,20.4922169]
[1733671371972,0.25098,235.07,234.94,0.63826905]
[1733671372672,0.12549,235.07,234.94,0.63826905]
[1733671373179,6.0617,235.08,234.98,20.0]
[1733671373467,6.0617,235.08,234.98,20.63809586]
[1733671374176,6.0617,235.08,234.98,20.0]
[1733671380161,6.0617,235.08,234.99,0.63809642]
[1733671380467,6.0617,235.08,234.98,20.0]
[1733671381673,6.0617,235.08,234.98,20.63810768]
[1733671383784,6.0617,235.08,235.02,20.0]
[1733671383963,1.3742,235.1,235.02,20.0]
[1733671384167,6.1771,235.13,235.02,20.63796975]
[1733671385270,0.12549,235.12,235.02,20.63796975]
[1733671385491,0.25098,235.12,234.94,31.27879985]
[1733671386079,0.25098,235.12,234.95,0.12549]
[1733671386261,0.25098,235.12,234.96,0.63810834]
[1733671386897,0.25098,235.12,235.0,20.0]
[1733671388090,0.12549,235.12,235.0,20.0]
[1733671389562,0.12549,235.1,234.97,20.0]
[1733671389792,0.12549,235.09,234.97,20.0]
[1733671391067,0.25098,235.09,234.97,20.0]
[1733671392069,6.1771,235.13,234.98,0.63815724]
[1733671392271,6.1771,235.13,235.02,20.0]
[1733671392591,6.1771,235.13,235.03,0.63799817]
[1733671393301,6.1771,235.13,234.97,26.29682502]
[1733671393502,0.25098,235.12,234.99,20.0]
[1733671393705,0.12549,235.11,234.93,37.43014192]
[1733671394002,0.12549,235.06,234.93,11.1333169]
[1733671394381,0.12549,235.06,234.94,0.63822362]
[1733671395200,0.12549,235.06,234.96,20.0]
[1733671395585,0.12549,235.06,234.97,20.0]
[1733671396711,0.25098,235.02,234.93,0.4922169]
[1733671398987,0.25098,235.01,234.93,0.4922169]
[1733671399191,0.12549,235.0,234.93,0.4922169]
[1733671401009,6.5912,235.03,234.93,0.4922169]
[1733671401203,0.12549,235.02,234.93,0.4922169]
[1733671401404,6.5912,235.03,234.93,0.4922169]
[1733671401914,6.5912,235.03,234.93,1.13052013]
[1733671402074,6.5912,235.03,234.94,20.0]
[1733671402878,6.5912,235.03,234.93,1.13052013]
[1733671403909,6.5912,235.03,234.94,20.0]
[1733671405887,6.5912,235.03,234.95,20.63821434]
[1733671406404,6.5912,235.03,234.96,20.0]
[1733671406612,7.7067,235.13,234.97,20.0]
[1733671406776,7.7067,235.13,235.01,20.0]
[1733671408385,0.12549,235.12,235.01,20.0]
[1733671411313,7.7067,235.13,235.02,23.776884]
[1733671411502,7.7067,235.13,235.05,20.0]
[1733671411924,6.3325,235.13,235.05,20.0]
[1733671413100,6.3325,235.13,235.06,0.6378831]
[1733671413706,6.5313,235.19,235.06,0.6378831]
[1733671414025,6.5313,235.19,235.1,20.0]
[1733671414188,6.5313,235.19,235.11,0.63768732]
[1733671415397,6.5313,235.27,235.11,0.63768732]
[1733671416213,6.5313,235.27,235.12,10.6328]
[1733671416420,6.5313,235.27,235.15,20.0]
[1733671416610,0.12549,235.26,235.16,0.63760386]
[1733671416808,6.5313,235.27,235.16,0.63760386]
[1733671417101,0.12549,235.26,235.16,0.63760386]
[1733671417327,6.5313,235.27,235.18,20.0]
[1733671417548,6.5313,235.27,235.18,20.63753823]
[1733671417699,6.5313,235.32,235.2,20.0]
[1733671417901,6.5313,235.32,235.21,0.63744229]
[1733671419603,6.5313,235.32,235.23,20.0]
[1733671419830,23.902374,235.31,235.23,20.0]
[1733671420142,0.12549,235.29,235.17,0.63749623]
[1733671420500,0.25098,235.29,235.17,0.63749623]
[1733671420697,0.37647,235.3,235.17,0.63749623]
[1733671420926,0.12549,235.29,235.13,0.63756323]
[1733671421128,0.12549,235.29,235.18,0.63756323]
[1733671422133,0.12549,235.3,235.19,0.63746405]
[1733671422730,0.12549,235.3,235.19,20.63746405]
[1733671422922,0.12549,235.29,235.13,0.63747214]
[1733671423151,0.12549,235.29,235.16,0.63747214]
[1733671423306,0.12549,235.29,235.12,12.81040168]
[1733671424630,0.12549,235.29,235.15,20.0]
[1733671424834,0.12549,235.29,235.16,0.63754626]
[1733671427320,23.776884,235.31,235.08,5.35856096]
[1733671427321,0.12549,235.26,235.09,0.63757631]
[1733671427517,0.12549,235.22,235.06,1.6168]
[1733671427949,0.12549,235.22,235.07,0.63779904]
[1733671428324,0.12549,235.22,235.07,11.27289904]
[1733671429016,0.12549,235.22,235.1,20.0]
[1733671429217,0.12549,235.22,235.11,0.63769085]
[1733671430043,0.12549,235.24,235.11,0.63769085]
[1733671430445,0.12549,235.25,235.11,0.63769085]
[1733671435228,0.12549,235.26,235.15,20.0]
[1733671435556,0.12549,235.26,235.16,0.63757542]
[1733671435739,0.37647,235.26,235.16,0.63757542]
[1733671436631,0.37647,235.26,235.15,20.0]
[1733671441263,0.37647,235.26,235.15,20.63760371]
[1733671441641,24.153354,235.26,235.15,20.63760371]
[1733671446669,24.153354,235.26,235.15,20.0]
[1733671447455,24.153354,235.26,235.15,20.63764339]
[1733671457057,6.3298,235.27,235.16,10.631]
[1733671457287,6.3298,235.27,235.19,20.0]
[1733671457783,6.3298,235.27,235.19,20.63748951]
[1733671458782,3.1865,235.37,235.19,20.63748951]
[1733671458783,6.2052,235.32,235.19,20.63748951]
[1733671459152,6.2052,235.32,235.2,10.6292]
[1733671459352,6.2052,235.32,235.23,20.0]
[1733671459554,6.2052,235.32,235.24,0.63732462]
[1733671460173,6.2052,235.32,235.27,20.0]
[1733671460363,6.2052,235.32,235.28,0.63729632]
[1733671460571,1.3742,235.35,235.28,0.63729632]
[1733671460759,6.2052,235.38,235.28,0.63729632]
[1733671461501,0.12549,235.37,235.28,0.63729632]
[1733671461801,6.2052,235.38,235.28,0.63729632]
[1733671462396,6.2052,235.38,235.31,20.0]
[1733671462574,1.3742,235.4,235.32,0.6371553]
[1733671462888,6.3276,235.43,235.32,0.6371553]
[1733671464199,6.3276,235.43,235.32,20.6371553]
[1733671464391,6.3276,235.43,235.36,20.0]
[1733671464594,6.3276,235.43,235.37,0.63697444]
[1733671465606,1.3742,235.46,235.37,0.63697444]
[1733671466472,6.3276,235.48,235.37,0.63697444]
[1733671467476,6.3276,235.48,235.37,20.63697444]
[1733671467701,6.3276,235.54,235.39,1.5688]
[1733671467907,0.25098,235.53,235.4,0.63684107]
[1733671468810,0.12549,235.52,235.4,0.63684107]
[1733671469614,0.12549,235.52,235.35,0.63690872]
[1733671470107,0.12549,235.52,235.36,20.0]
[1733671470400,0.12549,235.52,235.37,0.63687402]
[1733671470601,0.25098,235.53,235.38,20.0]
[1733671470801,0.25098,235.53,235.39,20.63682732]
[1733671471693,6.3276,235.54,235.42,20.0]
[1733671471898,6.3276,235.54,235.43,0.6367681]
[1733671474799,0.37647,235.53,235.43,0.6367681]
[1733671476190,0.12549,235.53,235.43,0.6367681]
[1733671476398,6.3276,235.54,235.43,0.6367681]
[1733671476600,6.3276,235.54,235.45,20.0]
[1733671476909,6.3276,235.54,235.45,20.63678701]
[1733671479207,6.3276,235.54,235.48,20.0]
[1733671479412,1.3742,235.57,235.49,0.63665581]
[1733671480396,6.3276,235.6,235.49,0.63665581]
[1733671482624,6.3276,235.6,235.49,20.63665581]
[1733671482814,6.3276,235.6,235.49,0.63665581]
[1733671483017,0.25098,235.59,235.49,0.63665581]
[1733671483387,0.25098,235.59,235.48,0.63669801]
[1733671485890,6.3276,235.6,235.48,0.63669801]
[1733671486385,6.3276,235.6,235.49,0.63657565]
[1733671487341,6.3276,235.6,235.52,20.0]
[1733671487492,6.3276,235.6,235.53,0.63654756]
[1733671489695,1.3742,235.63,235.53,0.63654756]
[1733671490086,0.12549,235.62,235.53,0.63654756]
[1733671490718,1.3742,235.63,235.53,0.63654756]
[1733671492218,0.12549,235.62,235.52,20.0]
[1733671496322,0.12549,235.62,235.5,0.63658373]
[1733671496323,24.027864,235.62,235.5,0.63658373]
[1733671496528,0.12549,235.59,235.46,0.63664074]
[1733671497625,0.12549,235.59,235.48,20.0]
[1733671497799,6.6545,235.6,235.49,0.63669365]
[1733671498505,6.6545,235.6,235.53,20.0]
[1733671498702,6.6545,235.6,235.54,0.6365649]
[1733671500140,1.3742,235.63,235.54,0.6365649]
[1733671500427,6.6545,235.66,235.54,0.6365649]
[1733671500632,6.6545,235.66,235.58,20.0]
[1733671500815,6.6545,235.66,235.59,0.63638495]
[1733671501433,8.0036,235.75,235.59,0.63638495]
[1733671502298,3.43238,235.74,235.59,0.63638495]
[1733671502499,3.43238,235.74,235.57,20.0]
[1733671502735,3.43238,235.74,235.58,0.63645233]
[1733671503029,0.25098,235.72,235.58,0.63645233]
[1733671505817,23.776884,235.73,235.59,0.12549]
[1733671506023,23.776884,235.74,235.6,0.63636421]
[1733671506219,8.0036,235.75,235.62,20.0]
[1733671506408,8.0036,235.75,235.63,0.63629681]
[1733671509342,8.0036,235.75,235.62,20.0]
[1733671509506,8.0036,235.75,235.62,20.63629951]
[1733671510127,8.0036,235.75,235.65,20.0]
[1733671510304,8.0036,235.75,235.66,0.63622593]
[1733671512212,6.6294,235.75,235.68,20.0]
[1733671512414,6.6294,235.75,235.69,0.6361376]
[1733671513822,0.4922169,235.76,235.69,0.6361376]
[1733671514451,0.4922169,235.76,235.64,20.0]
[1733671515239,0.4922169,235.76,235.64,20.63624078]
[1733671515539,6.2503,235.75,235.62,0.12549]
[1733671515741,6.2503,235.75,235.61,11.24670167]
[1733671516040,6.2503,235.75,235.63,0.63630167]
[1733671516836,6.2503,235.75,235.64,20.63617964]
[1733671517142,6.2503,235.75,235.65,0.12549]
[1733671517452,6.2503,235.75,235.64,20.63617964]
[1733671519127,6.2503,235.75,235.65,0.12549]
[1733671519456,6.2503,235.75,235.66,0.6361661]
[1733671519627,6.2503,235.75,235.67,0.12549]
[1733671519827,0.4922169,235.76,235.68,0.63615103]
[1733671520125,0.4922169,235.76,235.69,20.0]
[1733671520331,0.4922169,235.76,235.7,0.63611459]
[1733671523436,0.4922169,235.76,235.69,20.0]
[1733671523635,0.4922169,235.76,235.67,0.12549]
[1733671524555,0.4922169,235.76,235.62,12.26186348]
[1733671524717,0.4922169,235.76,235.62,10.6099]
[1733671524915,0.4922169,235.76,235.63,0.63630226]
[1733671525728,0.4922169,235.76,235.64,10.6094]
[1733671525930,0.4922169,235.76,235.67,20.0]
[1733671526245,0.4922169,235.76,235.67,20.63618084]
[1733671526456,0.4922169,235.76,235.68,0.12549]
[1733671526637,0.4922169,235.76,235.7,0.12549]
[1733671526942,0.4922169,235.76,235.71,0.63603339]
[1733671527152,0.4922169,235.76,235.72,0.12549]
[1733671527323,0.4922169,235.76,235.73,0.63600278]
[1733671527525,0.4922169,235.76,235.73,20.63600278]
[1733671529616,0.4922169,235.76,235.74,0.12549]
[1733671529821,0.4922169,235.76,235.75,20.76141994]
[1733671530619,0.4922169,235.76,235.72,20.0]
[1733671530824,0.4922169,235.76,235.73,0.6360514]
[1733671531047,0.4922169,235.76,235.74,0.12549]
[1733671531256,0.4922169,235.76,235.75,0.76141899]
[1733671532233,0.4922169,235.76,235.75,20.76141899]
[1733671532445,5.0,235.98,235.75,20.76141899]
[1733671532446,6.4476,235.93,235.8,0.12549]
[1733671532624,6.4476,235.93,235.8,0.76124517]
[1733671533134,6.4476,235.93,235.81,0.25098]
[1733671533341,6.4476,235.93,235.83,0.12549]
[1733671533664,6.4476,235.93,235.84,20.63569742]
[1733671533829,6.4476,235.93,235.84,20.0]
[1733671534031,6.4476,235.93,235.8,20.12549]
[1733671535126,23.776884,235.92,235.8,20.0]
[1733671535331,23.776884,235.92,235.78,0.12549]
[1733671535548,23.776884,235.92,235.78,0.63587578]
[1733671535854,0.25098,235.91,235.78,0.63587578]
[1733671539350,23.776884,235.92,235.78,0.63587578]
[1733671539850,6.4476,235.93,235.79,0.12549]
[1733671540051,6.4476,235.93,235.81,0.12549]
[1733671540254,6.4476,235.93,235.82,0.63575034]
[1733671541347,6.4476,235.93,235.83,0.12549]
[1733671541545,6.4476,235.93,235.84,0.63570054]
[1733671541961,6.4476,235.93,235.82,20.0]
[1733671542262,6.4476,235.93,235.82,20.6358011]
[1733671545241,6.4476,235.93,235.83,0.12549]
[1733671545454,6.4476,235.93,235.84,0.63571568]
[1733671548266,6.4476,235.93,235.85,20.0]
[1733671548673,6.4476,235.93,235.86,0.63571086]
[1733671549044,6.8148169,236.0,235.86,0.63571086]
[1733671550450,6.8148169,236.0,235.85,20.0]
[1733671550655,27.205964,235.99,235.85,20.0]
[1733671552176,27.205964,235.99,235.85,20.6357119]
[1733671553177,3.1781,235.99,235.85,20.6357119]
[1733671554676,6.8148169,236.0,235.85,20.6357119]
[1733671555188,6.8148169,236.0,235.86,23.902374]
[1733671555350,6.8148169,236.0,235.89,20.0]
[1733671555549,6.8148169,236.0,235.9,0.63559481]
[1733671560457,6.8148169,236.0,235.89,20.0]
[1733671560657,6.8148169,236.0,235.83,0.63558184]
[1733671562007,6.8148169,236.0,235.87,20.0]
[1733671562887,0.25098,235.99,235.87,20.0]
[1733671563091,0.25098,235.99,235.84,20.0]
[1733671563405,0.25098,235.99,235.85,0.63571458]
[1733671564291,6.8148169,236.0,235.85,0.63571458]
[1733671566610,6.8148169,236.0,235.89,20.0]
[1733671566789,6.8148169,236.0,235.9,0.63559437]
[1733671569078,6.8148169,236.0,235.89,20.0]
[1733671569308,6.8148169,236.0,235.85,20.63558994]
[1733671571186,0.4922169,236.0,235.93,20.0]
[1733671571386,0.4922169,236.0,235.94,0.63549252]
[1733671574083,0.4922169,236.0,235.93,20.0]
[1733671574410,0.4922169,236.0,235.94,0.63552987]
[1733671575290,0.4922169,236.0,235.98,20.0]
[1733671575499,0.4922169,236.0,235.99,0.63536829]
[1733671577389,0.4922169,236.0,235.99,24.41225229]
[1733671582830,0.4922169,236.0,235.99,30.09420123]
[1733671583197,1.3742,236.13,235.99,30.09420123]
[1733671583198,6.1881,236.18,236.03,20.25098]
[1733671583399,6.1881,236.18,236.04,6.06609681]
[1733671583702,6.1881,236.18,236.08,20.0]
[1733671583904,6.1881,236.18,236.09,0.63503756]
[1733671584911,6.1881,236.18,236.09,20.63503756]
[1733671586525,6.1881,236.18,236.13,20.0]
[1733671586826,6.1881,236.18,236.14,0.63495524]
[1733671587408,6.1881,236.23,236.14,0.63495524]
[1733671588236,6.1881,236.23,236.15,20.0]
[1733671588399,6.1881,236.23,236.16,0.63485248]
[1733671589010,0.4922169,236.24,236.16,0.63485248]
[1733671589213,0.4922169,236.24,236.17,23.776884]
[1733671589414,0.4922169,236.24,236.2,20.0]
[1733671590297,0.4922169,236.24,236.2,20.63479631]
[1733671592333,6.66235099,236.43,236.2,20.63479631]
[1733671592334,1.3742,236.34,236.24,20.0]
[1733671592497,1.3742,236.34,236.25,0.63462986]
[1733671592844,6.3727,236.35,236.26,23.776884]
[1733671593128,6.3727,236.35,236.27,0.6345699]
[1733671594002,6.3727,236.35,236.24,20.0]
[1733671594203,0.12549,236.34,236.24,20.63465019]
[1733671596010,6.3727,236.35,236.24,20.63465019]
[1733671596214,6.3727,236.35,236.25,23.776884]
[1733671596418,6.3727,236.35,236.28,20.0]
[1733671597904,6.3727,236.35,236.28,20.63460806]
[1733671598427,6.3727,236.35,236.28,20.0]
[1733671599007,0.12549,236.34,236.28,20.0]
[1733671599224,0.12549,236.34,236.25,0.63458918]
[1733671599608,0.25098,236.34,236.19,0.6346734]
[1733671599830,0.25098,236.34,236.22,0.6346734]
[1733671600242,0.12549,236.34,236.22,0.6346734]
[1733671600744,0.12549,236.34,236.23,24.41154684]
[1733671601113,6.3727,236.35,236.27,23.776884]
[1733671601338,1.3742,236.39,236.28,0.63453079]
[1733671601717,6.1127,236.41,236.29,23.776884]
[1733671602018,6.1127,236.41,236.3,0.63448329]
[1733671602539,6.1127,236.41,236.31,23.776884]
[1733671602930,6.1127,236.41,236.27,43.776884]
[1733671603125,0.12549,236.4,236.28,0.63456523]
[1733671603326,0.12549,236.4,236.29,23.776884]
[1733671603718,0.25098,236.4,236.29,23.776884]
[1733671604127,0.25098,236.4,236.28,23.776884]
[1733671604637,0.12549,236.39,236.27,20.0]
[1733671604824,0.25098,236.38,236.27,20.63464358]
[1733671605226,0.25098,236.38,236.28,23.776884]
[1733671607422,6.1127,236.41,236.28,23.776884]
[1733671607651,6.1127,236.41,236.3,23.776884]
[1733671608019,0.25098,236.4,236.28,23.776884]
[1733671611825,0.25098,236.4,236.27,20.63459172]
[1733671614263,0.12549,236.39,236.27,20.63459172]
[1733671617730,0.12549,236.39,236.26,20.0]
[1733671618559,0.12549,236.39,236.26,20.63467009]
[1733671619265,23.902374,236.39,236.26,0.63467009]
[1733671619467,0.12549,236.37,236.2,0.63467306]
[1733671619676,1.62518,236.35,236.2,0.63467306]
[1733671619874,0.12549,236.34,236.2,0.63467306]
[1733671620663,0.12549,236.34,236.18,1.6332]
[1733671621030,0.12549,236.32,236.18,1.6332]
[1733671621360,0.12549,236.32,236.19,0.63488687]
[1733671622753,6.5923,236.3,236.15,5.43096894]
[1733671623065,0.12549,236.28,236.14,0.63485058]
[1733671623372,0.12549,236.29,236.14,0.63485058]
[1733671623531,0.25098,236.29,236.14,0.63485058]
[1733671624043,0.25098,236.29,236.14,20.63485058]
[1733671624243,0.12549,236.28,236.14,20.63485058]
[1733671624443,0.12549,236.28,236.15,23.776884]
[1733671624650,0.25098,236.26,236.13,23.776884]
[1733671625157,0.12549,236.25,236.12,2.2211665]
[1733671625370,0.25098,236.23,236.12,0.6349665]
[1733671625664,0.12549,236.19,236.03,26.57310962]
[1733671625969,6.84328,236.17,236.03,27.20828751]